fUSD/lending_fUSD_20241222
["ID","MTS","AMOUNT","RATE_DAILY","PERIOD"]
[346322496,1734891037845,-500.0,0.00019178,2]
[346322497,1734891037855,-500.0,0.00019178,2]
[346322498,1734891037865,-500.0,0.00019178,2]
[346322499,1734891037874,-500.0,0.00019178,2]
[346322500,1734891037884,-500.0,0.00019178,2]
[346322501,1734891037893,-500.0,0.00019178,2]
[346322502,1734891037903,-500.0,0.00019178,2]
[346322503,1734891037912,-566.07793346,0.00019178,2]
[346322504,1734891037921,-500.0,0.00019178,2]
[346322505,1734891037930,-500.0,0.00019178,2]
[346322506,1734891037940,-500.0,0.00019178,2]
[346322507,1734891037949,-520.76,0.00019178,2]
[346322508,1734891037958,-500.0,0.00019178,2]
[346322509,1734891037967,-500.0,0.00019178,2]
[346322510,1734891037976,-500.0,0.00019178,2]
[346322511,1734891037985,-500.0,0.00019178,2]
[346322512,1734891037994,-500.0,0.00019178,2]
[346322513,1734891038003,-500.0,0.00019178,2]
[346322514,1734891038012,-7269.84,0.00019178,2]
[346322515,1734891038022,-500.0,0.00019178,2]
[346322516,1734891038031,-500.0,0.00019178,2]
[346322517,1734891038040,-500.0,0.00019178,2]
[346322518,1734891038049,-500.0,0.00019178,2]
[346322519,1734891038058,-500.0,0.00019178,2]
[346322520,1734891038067,-500.0,0.00019178,2]
[346322521,1734891038077,-500.0,0.00019178,2]
[346322522,1734891038086,-652.52,0.00019178,2]
[346322523,1734891038095,-500.0,0.00019178,2]
[346322524,1734891038105,-500.0,0.00019178,2]
[346322525,1734891038114,-544.87,0.00019178,2]
[346322526,1734891038123,-500.0,0.00019178,2]
[346322527,1734891038132,-555.64,0.00019178,2]
[346322528,1734891038141,-500.0,0.00019178,2]
[346322529,1734891038150,-500.0,0.00019178,2]
[346322530,1734891038159,-500.0,0.00019178,2]
[346322531,1734891038168,-500.0,0.00019178,2]
[346322532,1734891038177,-500.0,0.00019178,2]
[346322533,1734891038186,-500.0,0.00019178,2]
[346322534,1734891038196,-500.0,0.00019178,2]
[346322535,1734891038205,-500.0,0.00019178,2]
[346322537,1734891038214,-1606.33,0.00019178,2]
[346322539,1734891038223,-500.0,0.00019178,2]
[346322541,1734891038232,-500.0,0.00019178,2]
[346322543,1734891038241,-501.89,0.00019178,2]
[346322545,1734891038250,-500.0,0.00019178,2]
[346322547,1734891038260,-1254.02,0.00019178,2]
[346322549,1734891038269,-500.0,0.00019178,2]
[346322551,1734891038278,-500.0,0.00019178,2]
[346322552,1734891038288,-500.0,0.00019178,2]
[346322553,1734891038297,-1295.87,0.00019178,2]
[346322554,1734891038307,-557.46,0.00019178,2]
[346322555,1734891038315,-534.53551174,0.00019178,2]
[346322556,1734891038327,-500.0,0.00019178,2]
[346322557,1734891038336,-500.0,0.00019178,2]
[346322558,1734891038345,-1959.15,0.00019178,2]
[346322559,1734891038354,-579.81,0.00019178,2]
[346322560,1734891038363,-500.0,0.00019178,2]
[346322561,1734891038372,-499.4,0.00019178,2]
[346322562,1734891038382,-835.78,0.00019178,2]
[346322563,1734891038391,-500.0,0.00019178,2]
[346322564,1734891038401,-3378.288737,0.00019178,2]
[346322565,1734891038410,-500.0,0.00019178,2]
[346322566,1734891038419,-500.0,0.00019178,2]
[346322567,1734891038428,-500.0,0.00019178,2]
[346322568,1734891038437,-500.0,0.00019178,2]
[346322569,1734891038446,-13032.050777,0.00019178,2]
[346322570,1734891038455,-546.82,0.00019178,2]
[346322571,1734891038464,-165.956462,0.00019178,2]
[346322572,1734891038473,-580.9,0.00019178,2]
[346322573,1734891038483,-154.763619,0.00019178,2]
[346322574,1734891038492,-500.0,0.00019178,2]
[346322575,1734891038501,-500.0,0.00019178,2]
[346322576,1734891038510,-500.0,0.00019178,2]
[346322577,1734891038519,-1640.27,0.00019178,2]
[346322578,1734891038528,-2123.52,0.00019178,2]
[346322579,1734891038537,-500.0,0.00019178,2]
[346322580,1734891038546,-505.46711476,0.00019178,2]
[346322581,1734891038556,-500.0,0.00019178,2]
[346322583,1734891038565,-500.0,0.00019178,2]
[346322584,1734891038575,-500.0,0.00019178,2]
[346322586,1734891038585,-500.0,0.00019178,2]
[346322587,1734891038594,-500.0,0.00019178,2]
[346322589,1734891038608,-500.0,0.00019178,2]
[346322591,1734891038618,-500.0,0.00019178,2]
[346322593,1734891038627,-500.0,0.00019178,2]
[346322595,1734891038637,-500.0,0.00019178,2]
[346322597,1734891038647,-500.0,0.00019178,2]
[346322599,1734891038656,-500.0,0.00019178,2]
[346322600,1734891038665,-3329.95,0.00019178,2]
[346322601,1734891038674,-559.3,0.00019178,2]
[346322602,1734891038684,-500.0,0.00019178,2]
[346322603,1734891038693,-1060.05,0.00019178,2]
[346322604,1734891038703,-500.0,0.00019178,2]
[346322605,1734891038713,-911.76,0.00019178,2]
[346322606,1734891038722,-500.0,0.00019178,2]
[346322607,1734891038731,-500.0,0.00019178,2]
[346322608,1734891038740,-500.0,0.00019178,2]
[346322609,1734891038750,-1387.58,0.00019178,2]
[346322610,1734891038759,-3246.85,0.00019178,2]
[346322611,1734891038769,-500.0,0.00019178,2]
[346322612,1734891038779,-401.88465355,0.00019178,2]
[346322613,1734891038789,-500.0,0.00019178,2]
[346322614,1734891038799,-500.0,0.00019178,2]
[346322615,1734891038808,-500.0,0.00019178,2]
[346322616,1734891038817,-500.0,0.00019178,2]
[346322617,1734891038829,-500.0,0.00019178,2]
[346322618,1734891038839,-200.29,0.00019178,2]
[346322619,1734891038848,-20093.53,0.00019178,2]
[346322620,1734891038858,-500.0,0.00019178,2]
[346322621,1734891038867,-500.0,0.00019178,2]
[346322622,1734891038876,-500.0,0.00019178,2]
[346322623,1734891038885,-500.0,0.00019178,2]
[346322624,1734891038895,-828.58,0.00019178,2]
[346322625,1734891038905,-500.0,0.00019178,2]
[346322626,1734891038914,-6245.42,0.00019178,2]
[346322627,1734891038931,-637.88,0.00019178,2]
[346322628,1734891038943,-500.0,0.00019178,2]
[346322629,1734891038952,-500.0,0.00019178,2]
[346322630,1734891038962,-533.14,0.00019178,2]
[346322631,1734891038971,-500.0,0.00019178,2]
[346322632,1734891038979,-695.92,0.00019178,2]
[346322633,1734891038988,-500.0,0.00019178,2]
[346322634,1734891038997,-500.0,0.00019178,2]
[346322635,1734891039006,-504.1026155,0.00019178,2]
[346322636,1734891039015,-1089.38,0.00019178,2]
[346322637,1734891039024,-27290.46,0.00019178,2]
[346322638,1734891039033,-533.79,0.00019178,2]
[346322639,1734891039043,-500.0,0.00019178,2]
[346322640,1734891039052,-500.0,0.00019178,2]
[346322641,1734891039061,-500.0,0.00019178,2]
[346322642,1734891039071,-500.0,0.00019178,2]
[346322643,1734891039080,-500.0,0.00019178,2]
[346322644,1734891039089,-500.0,0.00019178,2]
[346322645,1734891039099,-500.0,0.00019178,2]
[346322646,1734891039108,-500.0,0.00019178,2]
[346322647,1734891039117,-500.0,0.00019178,2]
[346322648,1734891039126,-3667.47,0.00019178,2]
[346322649,1734891039135,-500.0,0.00019178,2]
[346322650,1734891039144,-500.0,0.00019178,2]
[346322651,1734891039153,-500.0,0.00019178,2]
[346322652,1734891039163,-500.0,0.00019178,2]
[346322653,1734891039172,-500.0,0.00019178,2]
[346322654,1734891039181,-500.0,0.00019178,2]
[346322655,1734891039190,-500.0,0.00019178,2]
[346322656,1734891039198,-500.0,0.00019178,2]
[346322657,1734891039208,-500.0,0.00019178,2]
[346322658,1734891039217,-500.0,0.00019178,2]
[346322659,1734891039226,-500.0,0.00019178,2]
[346322660,1734891039235,-500.0,0.00019178,2]
[346322661,1734891039244,-721.59,0.00019178,2]
[346322662,1734891039253,-500.0,0.00019178,2]
[346322663,1734891039262,-1048.71,0.00019178,2]
[346322664,1734891039271,-1720.49,0.00019178,2]
[346322665,1734891039280,-500.0,0.00019178,2]
[346322666,1734891039289,-703.03,0.00019178,2]
[346322667,1734891039298,-500.0,0.00019178,2]
[346322668,1734891039307,-500.0,0.00019178,2]
[346322669,1734891039316,-500.0,0.00019178,2]
[346322670,1734891039327,-500.0,0.00019178,2]
[346322671,1734891039337,-1182.44,0.00019178,2]
[346322672,1734891039346,-4554.76,0.00019178,2]
[346322673,1734891039355,-497.56405829,0.00019178,2]
[346322674,1734891039364,-500.0,0.00019178,2]
[346322675,1734891039373,-500.0,0.00019178,2]
[346322676,1734891039383,-500.0,0.00019178,2]
[346322677,1734891039392,-947.69,0.00019178,2]
[346322678,1734891039401,-546.68,0.00019178,2]
[346322679,1734891039410,-621.99,0.00019178,2]
[346322680,1734891039419,-2218.38,0.00019178,2]
[346322681,1734891039428,-500.0,0.00019178,2]
[346322682,1734891039438,-500.0,0.00019178,2]
[346322683,1734891039447,-500.0,0.00019178,2]
[346322684,1734891039456,-500.0,0.00019178,2]
[346322685,1734891039465,-1174.71,0.00019178,2]
[346322686,1734891039474,-500.0,0.00019178,2]
[346322687,1734891039483,-500.0,0.00019178,2]
[346322688,1734891039492,-500.0,0.00019178,2]
[346322689,1734891039502,-904.91,0.00019178,2]
[346322690,1734891039511,-500.0,0.00019178,2]
[346322691,1734891039520,-12008.9,0.00019178,2]
[346322692,1734891039529,-500.0,0.00019178,2]
[346322693,1734891039538,-500.0,0.00019178,2]
[346322694,1734891039547,-4344.64,0.00019178,2]
[346322695,1734891039556,-1935.2,0.00019178,2]
[346322696,1734891039566,-13923.29,0.00019178,2]
[346322697,1734891039577,-500.0,0.00019178,2]
[346322698,1734891039586,-500.0,0.00019178,2]
[346322699,1734891039596,-1409.12,0.00019178,2]
[346322700,1734891039610,-5062.39,0.00019178,2]
[346322701,1734891039620,-500.0,0.00019178,2]
[346322702,1734891039630,-500.0,0.00019178,2]
[346322703,1734891039639,-500.0,0.00019178,2]
[346322704,1734891039650,-43930.19,0.00019178,2]
[346322705,1734891039659,-1301.19,0.00019178,2]
[346322706,1734891039669,-500.0,0.00019178,2]
[346322707,1734891039678,-500.0,0.00019178,2]
[346322708,1734891039688,-1110.9,0.00019178,2]
[346322709,1734891039696,-500.0,0.00019178,2]
[346322710,1734891039705,-672.77,0.00019178,2]
[346322711,1734891039715,-500.0,0.00019178,2]
[346322712,1734891039725,-500.0,0.00019178,2]
[346322713,1734891039734,-599.45864471,0.00019178,2]
[346322714,1734891039743,-805.49,0.00019178,2]
[346322715,1734891039752,-929.51,0.00019178,2]
[346322716,1734891039762,-500.0,0.00019178,2]
[346322717,1734891039771,-1597.68,0.00019178,2]
[346322718,1734891039781,-500.0,0.00019178,2]
[346322719,1734891039792,-555.63,0.00019178,2]
[346322720,1734891039801,-500.0,0.00019178,2]
[346322721,1734891039810,-500.0,0.00019178,2]
[346322722,1734891039820,-500.0,0.00019178,2]
[346322723,1734891039830,-500.0,0.00019178,2]
[346322724,1734891039839,-8616.3,0.00019178,2]
[346322725,1734891039849,-3473.57,0.00019178,2]
[346322726,1734891039858,-500.0,0.00019178,2]
[346322727,1734891039867,-500.0,0.00019178,2]
[346322728,1734891039876,-3666.54,0.00019178,2]
[346322729,1734891039885,-490.79164151,0.00019178,2]
[346322730,1734891040225,-915.47591036,0.00019178,2]
[346322731,1734891040856,-457.55244813,0.00019178,2]
[346322732,1734891040865,-500.0,0.00019178,2]
[346322733,1734891040874,-500.0,0.00019178,2]
[346322734,1734891040884,-2547.22,0.00019178,2]
[346322735,1734891040893,-525.76,0.00019178,2]
[346322736,1734891040903,-500.0,0.00019178,2]
[346322737,1734891040912,-500.0,0.00019178,2]
[346322738,1734891040921,-500.0,0.00019178,2]
[346322739,1734891040930,-5503.96,0.00019178,2]
[346322740,1734891040940,-500.0,0.00019178,2]
[346322741,1734891040949,-500.0,0.00019178,2]
[346322742,1734891040958,-625.48,0.00019178,2]
[346322743,1734891040967,-500.0,0.00019178,2]
[346322744,1734891040977,-500.0,0.00019178,2]
[346322745,1734891040986,-500.0,0.00019178,2]
[346322746,1734891040995,-500.0,0.00019178,2]
[346322747,1734891041004,-500.0,0.00019178,2]
[346322748,1734891041012,-500.0,0.00019178,2]
[346322749,1734891041021,-500.0,0.00019178,2]
[346322750,1734891041030,-500.0,0.00019178,2]
[346322751,1734891041039,-500.0,0.00019178,2]
[346322752,1734891041049,-716.69,0.00019178,2]
[346322753,1734891041058,-500.0,0.00019178,2]
[346322754,1734891041067,-404.91200187,0.00019178,2]
[346322755,1734891041086,-1344.57799813,0.00019178,2]
[346322756,1734891041095,-500.0,0.00019178,2]
[346322757,1734891041104,-500.0,0.00019178,2]
[346322758,1734891041113,-500.0,0.00019178,2]
[346322759,1734891041122,-500.0,0.00019178,2]
[346322760,1734891041131,-2674.79,0.00019178,2]
[346322761,1734891041140,-549.15,0.00019178,2]
[346322762,1734891041149,-587.11,0.00019178,2]
[346322763,1734891041159,-500.0,0.00019178,2]
[346322764,1734891041170,-3818.16,0.00019178,2]
[346322765,1734891041180,-500.0,0.00019178,2]
[346322766,1734891041190,-500.0,0.00019178,2]
[346322767,1734891041199,-500.0,0.00019178,2]
[346322768,1734891041208,-500.0,0.00019178,2]
[346322769,1734891041217,-500.0,0.00019178,2]
[346322770,1734891041226,-500.0,0.00019178,2]
[346322771,1734891041236,-4913.38,0.00019178,2]
[346322772,1734891041245,-500.0,0.00019178,2]
[346322773,1734891041254,-1189.79,0.00019178,2]
[346322774,1734891041263,-500.0,0.00019178,2]
[346322775,1734891041272,-623.42,0.00019178,2]
[346322776,1734891041281,-500.0,0.00019178,2]
[346322777,1734891041291,-500.0,0.00019178,2]
[346322778,1734891041299,-975.9,0.00019178,2]
[346322779,1734891041309,-500.0,0.00019178,2]
[346322780,1734891041318,-500.0,0.00019178,2]
[346322781,1734891041331,-3336.44,0.00019178,2]
[346322782,1734891041340,-500.0,0.00019178,2]
[346322783,1734891041352,-500.0,0.00019178,2]
[346322784,1734891041361,-500.0,0.00019178,2]
[346322785,1734891041370,-500.0,0.00019178,2]
[346322786,1734891041379,-2217.17,0.00019178,2]
[346322787,1734891041388,-500.0,0.00019178,2]
[346322788,1734891041397,-5798.51,0.00019178,2]
[346322789,1734891041406,-6351.01,0.00019178,2]
[346322790,1734891041415,-1793.77,0.00019178,2]
[346322791,1734891041424,-500.0,0.00019178,2]
[346322792,1734891041433,-500.0,0.00019178,2]
[346322793,1734891041442,-500.0,0.00019178,2]
[346322794,1734891041451,-500.0,0.00019178,2]
[346322795,1734891041460,-502.58962109,0.00019178,2]
[346322796,1734891041469,-500.0,0.00019178,2]
[346322797,1734891041478,-500.0,0.00019178,2]
[346322798,1734891041487,-500.0,0.00019178,2]
[346322799,1734891041497,-500.0,0.00019178,2]
[346322800,1734891041506,-500.0,0.00019178,2]
[346322801,1734891041515,-1754.83,0.00019178,2]
[346322802,1734891041524,-500.0,0.00019178,2]
[346322803,1734891041533,-508.65478462,0.00019178,2]
[346322804,1734891041542,-500.0,0.00019178,2]
[346322805,1734891041551,-500.0,0.00019178,2]
[346322806,1734891041561,-500.0,0.00019178,2]
[346322807,1734891041570,-500.0,0.00019178,2]
[346322808,1734891041583,-500.0,0.00019178,2]
[346322809,1734891041593,-500.0,0.00019178,2]
[346322810,1734891041604,-500.0,0.00019178,2]
[346322811,1734891041614,-500.0,0.00019178,2]
[346322812,1734891041623,-76.78977841,0.00019178,2]
[346322813,1734891041635,-423.21022159,0.00019178,2]
[346322814,1734891041645,-500.0,0.00019178,2]
[346322815,1734891041654,-14597.58,0.00019178,2]
[346322816,1734891041662,-126.12874511,0.00019178,2]
[346322817,1734891041678,-373.87125489,0.00019178,2]
[346322818,1734891041688,-245.18262788,0.00019178,2]
[346322819,1734891041699,-254.81737212,0.00019178,2]
[346322820,1734891041708,-500.0,0.00019178,2]
[346322821,1734891041718,-501.61,0.00019178,2]
[346322822,1734891041727,-382.07272788,0.00019178,2]
[346322823,1734891041880,-124.71727212,0.00019178,2]
[346322824,1734891041889,-207.82931991,0.00019178,2]
[346322825,1734891041900,-2285.44068009,0.00019178,2]
[346322826,1734891041909,-500.12,0.00019178,2]
[346322827,1734891041918,-162.1299057,0.00019188,2]
[346322828,1734891041927,-162.1299057,0.00019242,2]
[346322829,1734891041936,-162.1299057,0.00019297,2]
[346322830,1734891041945,-287.0,0.00019331,2]
[346322831,1734891041954,-24353.98229285,0.00019339,3]
[346322832,1734891041966,-1802.42204229,0.00019339,3]
[346322833,1734891041976,-5272.452286,0.00019339,3]
[346322834,1734891041987,-6961.11466691,0.00019339,3]
[346322835,1734891041999,-422.25836631,0.00019339,3]
[346322836,1734891042010,-12165.44313694,0.00019339,3]
[346322837,1734891042099,-722.88000006,0.00019339,3]
[346322838,1734891042111,-1728.77262585,0.00019339,3]
[346322839,1734891042123,-1925.36,0.00019339,3]
[346322840,1734891042134,-9081.0,0.00019339,3]
[346322841,1734891042170,-36147.6469424,0.00019339,3]
[346322842,1734891042181,-19563.05503858,0.00019339,3]
[346322851,1734891042996,-212.72933193,0.00019178,2]
[346322853,1734891043006,-69.04272022,0.00019178,2]
[346322863,1734891043090,-430.95727978,0.00019178,2]
[346322865,1734891043100,-227.06232169,0.00019178,2]
[346322867,1734891043111,-271.98767831,0.00019178,2]
[346322869,1734891043120,-8114.01232169,0.00019339,3]
[346322871,1734891043132,-741.65,0.00019339,3]
[346322873,1734891043143,-425.73802,0.00019339,3]
[346322874,1734891043155,-427519.8257296,0.00019339,3]
[346322878,1734891043185,-518.20267636,0.00019339,3]
[346322880,1734891043197,-4865.65,0.00019339,3]
[346322883,1734891043208,-973.5000007,0.00019339,3]
[346322885,1734891043219,-1374.4,0.00019339,3]
[346322889,1734891043230,-7182.5,0.00019339,3]
[346322894,1734891043278,-304.52999997,0.00019339,3]
[346323013,1734891045818,-500.0,0.00019178,2]
[346323014,1734891045831,-780.60377805,0.00019339,3]
[346323015,1734891045843,-3282.40982692,0.00019339,3]
[346323016,1734891045854,-1947.7999999,0.00019339,3]
[346323017,1734891045866,-1544.29930045,0.00019339,3]
[346323018,1734891045970,-404.880005,0.00019339,3]
[346323019,1734891046052,-288216.32481269,0.00019339,3]
[346323020,1734891046082,-6247.3677665,0.00019339,3]
[346323176,1734891221492,168.28,0.00010137,2]
[346323180,1734892114357,300.90886725,9e-05,3]
[346323185,1734892189976,101225.12909975,0.0002,120]
[346323188,1734892225466,-173.95288718,0.000129,2]
[346323189,1734892225489,-32221.0,0.00012986,2]
[346323190,1734892225512,-26919.0,0.00012986,2]
[346323191,1734892225534,-450.0,0.00013,2]
[346323192,1734892225557,-62558.54711282,0.00013,2]
[346323210,1734892231963,-1006.1552966,0.00013,2]
[346323213,1734892232201,-29678.44351192,0.00013,2]
[346323214,1734892236294,-40186.88938631,0.00013,2]
[346323215,1734892236305,-19906.17654912,0.00013,2]
[346323216,1734892236316,-122332.62867054,0.00013,2]
[346323228,1734892237945,-2189015.33957059,0.00013,2]
[346323229,1734892237954,-88538.17254656,0.00013,2]
[346323230,1734892237963,-173.95288717,0.0001428,2]
[346323231,1734892237972,-500.0,0.00015,2]
[346323232,1734892237981,-173.95288717,0.0001566,2]
[346323233,1734892237990,-826.69,0.00016449,2]
[346323234,1734892237999,-500.0,0.00016603,2]
[346323235,1734892238008,-550.0,0.00017,2]
[346323236,1734892238017,-173.95288717,0.0001704,2]
[346323237,1734892238026,-592.44076102,0.0001786,2]
[346323238,1734892238036,-340.05,0.00017921,2]
[346323239,1734892238044,-448.93,0.00018007,2]
[346323240,1734892238054,-1510.32,0.0001802,2]
[346323241,1734892238063,-250.0,0.0001809,2]
[346323242,1734892238072,-1000.0,0.00018264,2]
[346323243,1734892238081,-161.84,0.00018279,30]
[346323244,1734892238091,-250.0,0.00018283,2]
[346323245,1734892238100,-173.95288717,0.0001842,2]
[346323246,1734892238109,-163.52,0.00018427,2]
[346323247,1734892238118,-1043.25,0.00018459,2]
[346323248,1734892238127,-214.78437314,0.000185,2]
[346323249,1734892238138,-250.0,0.00018696,2]
[346323250,1734892238147,-22112.36,0.000187,2]
[346323251,1734892238156,-29999.99,0.000187,2]
[346323252,1734892238165,-497.49,0.000187,2]
[346323253,1734892238175,-502.89,0.00018702,2]
[346323254,1734892238185,-491.87,0.00018704,2]
[346323255,1734892238195,-826.69,0.00018712,2]
[346323256,1734892238204,-497.64,0.000189,2]
[346323257,1734892238215,-495.95,0.000189,2]
[346323258,1734892238224,-491.75,0.000189,2]
[346323259,1734892238233,-500.11,0.000189,2]
[346323260,1734892238242,-499.14,0.000189,2]
[346323261,1734892238252,-506.07,0.000189,2]
[346323262,1734892238261,-498.94,0.000189,2]
[346323263,1734892238270,-497.87,0.000189,2]
[346323265,1734892238279,-600.0,0.00019,2]
[346323266,1734892238289,-323.556,0.00019,2]
[346323267,1734892238298,-10000.0,0.00019,2]
[346323268,1734892238308,-1000.0,0.00019,2]
[346323269,1734892238317,-1000.0,0.00019,2]
[346323270,1734892238326,-22787.37970422,0.00019,2]
[346323271,1734892238335,-1000.0,0.00019,2]
[346323272,1734892238344,-1000.0,0.00019,2]
[346323273,1734892238353,-351.9,0.00019041,2]
[346323274,1734892238364,-364.93,0.00019041,2]
[346323275,1734892238374,-1308.07,0.00019078,2]
[346323276,1734892238385,-423.27634811,0.00019172,2]
[346323277,1734892238394,-290.410702,0.00019178,2]
[346323278,1734892238405,-1133.546251,0.00019178,2]
[346323279,1734892238414,-252.36,0.00019178,2]
[346323280,1734892238423,-500.0,0.00019178,2]
[346323282,1734892238433,-559.53,0.00019178,2]
[346323284,1734892238442,-529.33,0.00019178,2]
[346323286,1734892238451,-224.08677277,0.00019178,2]
[346323288,1734892238460,-336.75,0.00019178,2]
[346323290,1734892238469,-500.0,0.00019178,2]
[346323292,1734892238479,-190.54937664,0.00019178,2]
[346323294,1734892238488,-500.0,0.00019178,2]
[346323296,1734892238497,-500.0,0.00019178,2]
[346323298,1734892238506,-491.13,0.00019178,2]
[346323300,1734892238515,-211.81,0.00019178,2]
[346323302,1734892238524,-500.0,0.00019178,2]
[346323304,1734892238533,-500.0,0.00019178,2]
[346323306,1734892238542,-500.0,0.00019178,2]
[346323308,1734892238552,-500.0,0.00019178,2]
[346323310,1734892238561,-500.0,0.00019178,2]
[346323312,1734892238570,-500.0,0.00019178,2]
[346323314,1734892238579,-414.72,0.00019178,2]
[346323316,1734892238588,-500.0,0.00019178,2]
[346323318,1734892238598,-500.0,0.00019178,2]
[346323320,1734892238607,-500.0,0.00019178,2]
[346323322,1734892238616,-500.0,0.00019178,2]
[346323324,1734892238628,-500.0,0.00019178,2]
[346323326,1734892238637,-500.0,0.00019178,2]
[346323328,1734892238646,-500.0,0.00019178,2]
[346323350,1734892238835,-503.70346334,0.00019178,2]
[346323352,1734892238844,-500.0,0.00019178,2]
[346323354,1734892238854,-500.0,0.00019178,2]
[346323356,1734892238863,-500.0,0.00019178,2]
[346323358,1734892238872,-430.80028002,0.00019178,2]
[346323360,1734892238882,-368.04,0.00019178,2]
[346323362,1734892238892,-500.0,0.00019178,2]
[346323364,1734892238901,-500.0,0.00019178,2]
[346323366,1734892238910,-500.0,0.00019178,2]
[346323368,1734892238919,-500.0,0.00019178,2]
[346323370,1734892238929,-500.0,0.00019178,2]
[346323372,1734892238938,-500.0,0.00019178,2]
[346323374,1734892238947,-500.0,0.00019178,2]
[346323376,1734892238957,-500.0,0.00019178,2]
[346323378,1734892238966,-500.0,0.00019178,2]
[346323380,1734892238975,-500.0,0.00019178,2]
[346323382,1734892238986,-500.0,0.00019178,2]
[346323384,1734892238995,-254.92,0.00019178,2]
[346323386,1734892239004,-500.0,0.00019178,2]
[346323388,1734892239014,-500.0,0.00019178,2]
[346323390,1734892239023,-500.0,0.00019178,2]
[346323392,1734892239032,-500.0,0.00019178,2]
[346323394,1734892239042,-500.0,0.00019178,2]
[346323396,1734892239051,-500.0,0.00019178,2]
[346323398,1734892239060,-500.0,0.00019178,2]
[346323400,1734892239068,-500.0,0.00019178,2]
[346323402,1734892239078,-500.0,0.00019178,2]
[346323404,1734892239087,-500.0,0.00019178,2]
[346323406,1734892239096,-446.39,0.00019178,2]
[346323408,1734892239105,-522.25,0.00019178,2]
[346323410,1734892239115,-500.0,0.00019178,2]
[346323412,1734892239124,-500.0,0.00019178,2]
[346323414,1734892239137,-500.0,0.00019178,2]
[346323416,1734892239146,-500.0,0.00019178,2]
[346323418,1734892239155,-500.0,0.00019178,2]
[346323420,1734892239164,-172.79,0.00019178,2]
[346323422,1734892239174,-500.0,0.00019178,2]
[346323424,1734892239183,-500.0,0.00019178,2]
[346323426,1734892239193,-500.0,0.00019178,2]
[346323428,1734892239202,-457.13,0.00019178,2]
[346323430,1734892239212,-500.0,0.00019178,2]
[346323432,1734892239224,-279.06,0.00019178,2]
[346323434,1734892239233,-419.0,0.00019178,2]
[346323436,1734892239242,-345.82,0.00019178,2]
[346323438,1734892239252,-218.63,0.00019178,2]
[346323440,1734892239261,-500.0,0.00019178,2]
[346323442,1734892239270,-591.8,0.00019178,2]
[346323444,1734892239279,-500.0,0.00019178,2]
[346323446,1734892239289,-500.0,0.00019178,2]
[346323448,1734892239298,-500.0,0.00019178,2]
[346323450,1734892239308,-266.32,0.00019178,2]
[346323452,1734892239317,-500.0,0.00019178,2]
[346323454,1734892239327,-500.0,0.00019178,2]
[346323456,1734892239336,-500.0,0.00019178,2]
[346323458,1734892239345,-500.0,0.00019178,2]
[346323460,1734892239355,-500.0,0.00019178,2]
[346323462,1734892239364,-500.0,0.00019178,2]